[Event "Titled Tuesday Blitz May 10 Early 2022"]
[White "Guliev, Logman"]
[Black "Polanco Nunez, Yoel Estarling"]
[WhiteFideId "13400061"]
[BlackFideId "6401783"]
[WhiteElo "2128"]
[BlackElo "2132"]
[Result "0-1"]
[Round "02"]
[TimeControl "180+1"]
[Date "2022.05.11"]
[WhiteClock "0:00:02"]
[BlackClock "0:00:06"]

1. e4 {[%clk 0:03:00]}  c5 {[%clk 0:02:54]} 2. Nf3 {[%clk 0:02:59]}  d6 {[%clk 0:02:54]} 3. d4 {[%clk 0:02:58]}  cxd4 {[%clk 0:02:55]} 4. Nxd4 {[%clk 0:02:58]}  Nf6 {[%clk 0:02:56]} 5. Nc3 {[%clk 0:02:59]}  a6 {[%clk 0:02:57]} 6. f4 {[%clk 0:02:58]}  Qc7 {[%clk 0:02:54]} 7. Nf3 {[%clk 0:02:55]}  Nc6 {[%clk 0:02:50]} 8. Bd3 {[%clk 0:02:56]}  g6 {[%clk 0:02:49]} 9. O-O {[%clk 0:02:56]}  Bg7 {[%clk 0:02:50]} 10. Kh1 {[%clk 0:02:56]}  O-O {[%clk 0:02:50]} 11. Qe1 {[%clk 0:02:55]}  Bg4 {[%clk 0:02:49]} 12. Qh4 {[%clk 0:02:54]}  Bxf3 {[%clk 0:02:49]} 13. Rxf3 {[%clk 0:02:51]}  e6 {[%clk 0:02:27]} 14. Be3 {[%clk 0:02:46]}  Rae8 {[%clk 0:02:24]} 15. Raf1 {[%clk 0:02:46]}  Qd8 {[%clk 0:02:24]} 16. g4 {[%clk 0:02:38]}  d5 {[%clk 0:02:06]} 17. g5 {[%clk 0:02:29]}  d4 {[%clk 0:01:46]} 18. gxf6 {[%clk 0:02:20]}  Bxf6 {[%clk 0:01:46]} 19. Qg4 {[%clk 0:02:15]}  dxe3 {[%clk 0:01:41]} 20. Rxe3 {[%clk 0:02:13]}  Bd4 {[%clk 0:01:34]} 21. Rh3 {[%clk 0:02:12]}  f5 {[%clk 0:01:33]} 22. exf5 {[%clk 0:02:11]}  exf5 {[%clk 0:01:31]} 23. Bc4+ {[%clk 0:02:08]}  Kg7 {[%clk 0:01:31]} 24. Qf3 {[%clk 0:02:03]}  Re3 {[%clk 0:01:24]} 25. Qg2 {[%clk 0:01:57]}  Rxh3 {[%clk 0:01:21]} 26. Qxh3 {[%clk 0:01:57]}  Re8 {[%clk 0:01:22]} 27. Nd5 {[%clk 0:01:49]}  Na5 {[%clk 0:01:08]} 28. Qd3 {[%clk 0:01:46]}  Bf6 {[%clk 0:00:59]} 29. Rd1 {[%clk 0:01:39]}  Nxc4 {[%clk 0:00:57]} 30. Qxc4 {[%clk 0:01:39]}  Qd6 {[%clk 0:00:48]} 31. Qb3 {[%clk 0:01:26]}  Qc6 {[%clk 0:00:47]} 32. c4 {[%clk 0:01:25]}  b5 {[%clk 0:00:45]} 33. cxb5 {[%clk 0:01:14]}  axb5 {[%clk 0:00:43]} 34. Qf3 {[%clk 0:01:12]}  Bxb2 {[%clk 0:00:37]} 35. Qg2 {[%clk 0:01:05]}  Bf6 {[%clk 0:00:36]} 36. h3 {[%clk 0:01:00]}  Re4 {[%clk 0:00:20]} 37. Kh2 {[%clk 0:00:50]}  Rd4 {[%clk 0:00:20]} 38. Rxd4 {[%clk 0:00:41]}  Bxd4 {[%clk 0:00:21]} 39. h4 {[%clk 0:00:36]}  Qc4 {[%clk 0:00:18]} 40. Ne7 {[%clk 0:00:33]}  Qe6 {[%clk 0:00:15]} 41. Nc6 {[%clk 0:00:29]}  Be3 {[%clk 0:00:12]} 42. Qf3 {[%clk 0:00:26]}  Qe4 {[%clk 0:00:13]} 43. Qxe4 {[%clk 0:00:25]}  fxe4 {[%clk 0:00:14]} 44. Kg3 {[%clk 0:00:26]}  Kf6 {[%clk 0:00:13]} 45. Nb4 {[%clk 0:00:16]}  Bd2 {[%clk 0:00:09]} 46. Nd5+ {[%clk 0:00:10]}  Ke6 {[%clk 0:00:10]} 47. Nc7+ {[%clk 0:00:09]}  Kf5 {[%clk 0:00:10]} 48. Nxb5 {[%clk 0:00:10]}  Bxf4+ {[%clk 0:00:10]} 49. Kf2 {[%clk 0:00:09]}  Kg4 {[%clk 0:00:10]} 50. Nc3 {[%clk 0:00:09]}  e3+ {[%clk 0:00:09]} 51. Kg2 {[%clk 0:00:08]}  Kxh4 {[%clk 0:00:10]} 52. a4 {[%clk 0:00:08]}  Kg5 {[%clk 0:00:10]} 53. a5 {[%clk 0:00:08]}  Bb8 {[%clk 0:00:11]} 54. a6 {[%clk 0:00:09]}  Kf4 {[%clk 0:00:11]} 55. Ne2+ {[%clk 0:00:06]}  Ke4 {[%clk 0:00:11]} 56. Ng3+ {[%clk 0:00:03]}  Kd3 {[%clk 0:00:09]} 57. Kf3 {[%clk 0:00:03]}  h5 {[%clk 0:00:06]} 58. Ne2 {[%clk 0:00:02]}  h4 {[%clk 0:00:06]} 59. Nf4+ {[%clk 0:00:02]}  Kd2 {[%clk 0:00:06]} 0-1


[Site "https://www.chess.com"]

[Event "Titled Tuesday Blitz May 10 Early 2022"]
[White "Guz, Ari"]
[Black "Manukian, Artak"]
[WhiteFideId "2825759"]
[BlackFideId "13301373"]
[WhiteElo "1913"]
[BlackElo "2404"]
[Result "1-0"]
[Round "02"]
[TimeControl "180+1"]
[Date "2022.05.11"]
[WhiteClock "0:00:28"]
[BlackClock "0:00:10"]

1. e4 {[%clk 0:03:00]}  c6 {[%clk 0:02:56]} 2. Nf3 {[%clk 0:02:59]}  d5 {[%clk 0:02:56]} 3. Nc3 {[%clk 0:03:00]}  dxe4 {[%clk 0:02:57]} 4. Nxe4 {[%clk 0:02:59]}  Nf6 {[%clk 0:02:58]} 5. Qe2 {[%clk 0:02:59]}  Nxe4 {[%clk 0:02:57]} 6. Qxe4 {[%clk 0:03:00]}  Nd7 {[%clk 0:02:58]} 7. Bc4 {[%clk 0:03:00]}  Nf6 {[%clk 0:02:58]} 8. Ne5 {[%clk 0:03:01]}  e6 {[%clk 0:02:58]} 9. Qe2 {[%clk 0:03:01]}  Bd6 {[%clk 0:02:54]} 10. d4 {[%clk 0:02:58]}  O-O {[%clk 0:02:53]} 11. Bg5 {[%clk 0:02:52]}  Be7 {[%clk 0:02:51]} 12. O-O-O {[%clk 0:02:46]}  Nd5 {[%clk 0:02:46]} 13. Bxe7 {[%clk 0:02:40]}  Qxe7 {[%clk 0:02:46]} 14. h4 {[%clk 0:02:40]}  b5 {[%clk 0:02:38]} 15. Nxc6 {[%clk 0:02:18]}  Qc7 {[%clk 0:02:30]} 16. Bxd5 {[%clk 0:02:13]}  exd5 {[%clk 0:02:29]} 17. Ne7+ {[%clk 0:02:10]}  Kh8 {[%clk 0:02:28]} 18. Nxd5 {[%clk 0:02:08]}  Qa5 {[%clk 0:02:03]} 19. a3 {[%clk 0:01:39]}  Bb7 {[%clk 0:01:46]} 20. Nb4 {[%clk 0:01:33]}  Qb6 {[%clk 0:01:36]} 21. Nd3 {[%clk 0:01:11]}  Qxd4 {[%clk 0:01:29]} 22. Qe5 {[%clk 0:01:08]}  Qxe5 {[%clk 0:01:11]} 23. Nxe5 {[%clk 0:01:07]}  Bxg2 {[%clk 0:01:12]} 24. Rhg1 {[%clk 0:01:07]}  Bh3 {[%clk 0:00:58]} 25. Rd5 {[%clk 0:00:58]}  a6 {[%clk 0:00:50]} 26. h5 {[%clk 0:00:58]}  Be6 {[%clk 0:00:44]} 27. Rd6 {[%clk 0:00:56]}  Rfd8 {[%clk 0:00:42]} 28. Rgd1 {[%clk 0:00:56]}  Rxd6 {[%clk 0:00:34]} 29. Rxd6 {[%clk 0:00:57]}  Kg8 {[%clk 0:00:35]} 30. b4 {[%clk 0:00:53]}  Kf8 {[%clk 0:00:35]} 31. Rb6 {[%clk 0:00:51]}  Ke7 {[%clk 0:00:32]} 32. Kb2 {[%clk 0:00:48]}  Kf6 {[%clk 0:00:31]} 33. Nd3 {[%clk 0:00:43]}  Kg5 {[%clk 0:00:29]} 34. Nc5 {[%clk 0:00:42]}  Kxh5 {[%clk 0:00:28]} 35. Nxa6 {[%clk 0:00:41]}  Bc4 {[%clk 0:00:20]} 36. Nc7 {[%clk 0:00:38]}  g5 {[%clk 0:00:18]} 37. Nxb5 {[%clk 0:00:36]}  Bxb5 {[%clk 0:00:18]} 38. Rxb5 {[%clk 0:00:37]}  Kg4 {[%clk 0:00:19]} 39. c4 {[%clk 0:00:36]}  h5 {[%clk 0:00:18]} 40. Rb7 {[%clk 0:00:36]}  h4 {[%clk 0:00:17]} 41. Rxf7 {[%clk 0:00:35]}  Rh8 {[%clk 0:00:17]} 42. Rd7 {[%clk 0:00:30]}  h3 {[%clk 0:00:16]} 43. Rd1 {[%clk 0:00:31]}  h2 {[%clk 0:00:16]} 44. Rh1 {[%clk 0:00:31]}  Kf3 {[%clk 0:00:16]} 45. c5 {[%clk 0:00:32]}  Kg2 {[%clk 0:00:15]} 46. Rxh2+ {[%clk 0:00:32]}  Kxh2 {[%clk 0:00:15]} 47. c6 {[%clk 0:00:33]}  Kg2 {[%clk 0:00:15]} 48. b5 {[%clk 0:00:33]}  Kxf2 {[%clk 0:00:14]} 49. b6 {[%clk 0:00:33]}  g4 {[%clk 0:00:10]} 50. c7 {[%clk 0:00:33]}  g3 {[%clk 0:00:10]} 51. b7 {[%clk 0:00:33]}  g2 {[%clk 0:00:10]} 52. b8=Q {[%clk 0:00:31]}  Rxb8+ {[%clk 0:00:09]} 53. cxb8=Q {[%clk 0:00:32]}  g1=Q {[%clk 0:00:09]} 54. Qa7+ {[%clk 0:00:33]}  Kf1 {[%clk 0:00:09]} 55. Qxg1+ {[%clk 0:00:33]}  Kxg1 {[%clk 0:00:10]} 56. a4 {[%clk 0:00:28]} 1-0


[Site "https://www.chess.com"]

[Event "Titled Tuesday Blitz May 10 Early 2022"]
[White "Dronavalli, Harika"]
[Black "Hakobyan, Aram"]
[WhiteFideId "5015197"]
[BlackFideId "13306677"]
[WhiteElo "2382"]
[BlackElo "2557"]
[Result "1-0"]
[Round "02"]
[TimeControl "180+1"]
[Date "2022.05.10"]
[WhiteClock "0:00:21"]
[BlackClock "0:00:05"]

1. e4 {[%clk 0:03:00]}  c5 {[%clk 0:02:59]} 2. c3 {[%clk 0:03:01]}  e5 {[%clk 0:02:58]} 3. Nf3 {[%clk 0:02:59]}  Nc6 {[%clk 0:02:59]} 4. Bb5 {[%clk 0:02:51]}  Nf6 {[%clk 0:02:57]} 5. O-O {[%clk 0:02:48]}  Nxe4 {[%clk 0:02:53]} 6. Re1 {[%clk 0:02:48]}  Nd6 {[%clk 0:02:53]} 7. Nxe5 {[%clk 0:02:42]}  Be7 {[%clk 0:02:52]} 8. Bf1 {[%clk 0:02:33]}  O-O {[%clk 0:02:52]} 9. d4 {[%clk 0:02:32]}  cxd4 {[%clk 0:02:50]} 10. cxd4 {[%clk 0:02:33]}  Nf5 {[%clk 0:02:51]} 11. d5 {[%clk 0:02:19]}  Nxe5 {[%clk 0:02:50]} 12. Rxe5 {[%clk 0:02:19]}  d6 {[%clk 0:02:50]} 13. Re1 {[%clk 0:02:19]}  Bf6 {[%clk 0:02:48]} 14. Nc3 {[%clk 0:02:19]}  Bd7 {[%clk 0:02:43]} 15. Ne4 {[%clk 0:02:16]}  Be5 {[%clk 0:02:42]} 16. Bd2 {[%clk 0:01:50]}  Qb6 {[%clk 0:02:07]} 17. Bc3 {[%clk 0:01:50]}  Bxc3 {[%clk 0:02:06]} 18. bxc3 {[%clk 0:01:50]}  Rfe8 {[%clk 0:02:04]} 19. Qf3 {[%clk 0:01:44]}  Re5 {[%clk 0:01:58]} 20. Rab1 {[%clk 0:01:33]}  Qc7 {[%clk 0:01:57]} 21. Nd2 {[%clk 0:01:17]}  Rae8 {[%clk 0:01:44]} 22. Rxe5 {[%clk 0:01:17]}  dxe5 {[%clk 0:01:40]} 23. Ne4 {[%clk 0:01:11]}  b6 {[%clk 0:01:33]} 24. g3 {[%clk 0:01:07]}  Nd6 {[%clk 0:01:31]} 25. Nxd6 {[%clk 0:01:02]}  Qxd6 {[%clk 0:01:32]} 26. Bd3 {[%clk 0:01:00]}  f5 {[%clk 0:01:29]} 27. Bc4 {[%clk 0:00:56]}  Rc8 {[%clk 0:01:27]} 28. Bb3 {[%clk 0:00:56]}  b5 {[%clk 0:01:21]} 29. Re1 {[%clk 0:00:54]}  a5 {[%clk 0:01:16]} 30. Qe3 {[%clk 0:00:45]}  e4 {[%clk 0:01:16]} 31. a4 {[%clk 0:00:34]}  bxa4 {[%clk 0:01:15]} 32. Ba2 {[%clk 0:00:33]}  Qa3 {[%clk 0:01:05]} 33. Qa7 {[%clk 0:00:28]}  Qd6 {[%clk 0:00:48]} 34. c4 {[%clk 0:00:27]}  h5 {[%clk 0:00:37]} 35. Rb1 {[%clk 0:00:26]}  Rc7 {[%clk 0:00:10]} 36. Qb8+ {[%clk 0:00:25]}  Bc8 {[%clk 0:00:07]} 37. c5 {[%clk 0:00:22]}  Qxc5 {[%clk 0:00:06]} 38. d6+ {[%clk 0:00:22]}  Rf7 {[%clk 0:00:05]} 39. d7 {[%clk 0:00:21]} 1-0


[Site "https://www.chess.com"]

[Event "Titled Tuesday Blitz May 10 Early 2022"]
[White "Heinemann, Josefine"]
[Black "Lashkin, Jegor"]
[WhiteFideId "12900460"]
[BlackFideId "13907808"]
[WhiteElo "2300"]
[BlackElo "2368"]
[Result "0-1"]
[Round "02"]
[TimeControl "180+1"]
[Date "2022.05.11"]
[WhiteClock "0:01:16"]
[BlackClock "0:02:33"]

1. Nf3 {[%clk 0:03:00]}  g6 {[%clk 0:02:59]} 2. g3 {[%clk 0:03:00]}  Bg7 {[%clk 0:02:59]} 3. d4 {[%clk 0:03:00]}  b6 {[%clk 0:02:59]} 4. Bg2 {[%clk 0:03:00]}  Bb7 {[%clk 0:03:00]} 5. O-O {[%clk 0:03:01]}  Nf6 {[%clk 0:03:00]} 6. c4 {[%clk 0:03:00]}  O-O {[%clk 0:03:00]} 7. Nc3 {[%clk 0:03:01]}  Ne4 {[%clk 0:03:00]} 8. Re1 {[%clk 0:02:59]}  Nxc3 {[%clk 0:03:00]} 9. bxc3 {[%clk 0:02:58]}  Be4 {[%clk 0:03:01]} 10. Ba3 {[%clk 0:02:53]}  d6 {[%clk 0:03:01]} 11. c5 {[%clk 0:02:53]}  Nc6 {[%clk 0:02:59]} 12. cxd6 {[%clk 0:02:52]}  cxd6 {[%clk 0:02:59]} 13. e3 {[%clk 0:02:42]}  Na5 {[%clk 0:02:57]} 14. Nd2 {[%clk 0:02:34]}  Bxg2 {[%clk 0:02:58]} 15. Kxg2 {[%clk 0:02:34]}  Rc8 {[%clk 0:02:59]} 16. Rc1 {[%clk 0:02:32]}  d5 {[%clk 0:02:59]} 17. Qa4 {[%clk 0:02:30]}  Re8 {[%clk 0:02:51]} 18. Bb4 {[%clk 0:02:21]}  Nc6 {[%clk 0:02:51]} 19. Ba3 {[%clk 0:02:18]}  e5 {[%clk 0:02:51]} 20. dxe5 {[%clk 0:02:09]}  Nxe5 {[%clk 0:02:52]} 21. Qf4 {[%clk 0:01:42]}  Nd3 {[%clk 0:02:50]} 22. Qd6 {[%clk 0:01:20]}  Nxe1+ {[%clk 0:02:50]} 23. Rxe1 {[%clk 0:01:20]}  Qxd6 {[%clk 0:02:51]} 24. Bxd6 {[%clk 0:01:20]}  Bxc3 {[%clk 0:02:51]} 25. Rd1 {[%clk 0:01:19]}  d4 {[%clk 0:02:36]} 26. exd4 {[%clk 0:01:18]}  Bxd4 {[%clk 0:02:34]} 27. Nf3 {[%clk 0:01:19]}  Bf6 {[%clk 0:02:34]} 28. Bb4 {[%clk 0:01:16]}  Rc2 {[%clk 0:02:33]} 0-1


[Site "https://www.chess.com"]

[Event "Titled Tuesday Blitz May 10 Early 2022"]
[White "Horak, Martin"]
[Black "Lauridsen, Jesper Morch"]
[WhiteFideId "367095"]
[BlackFideId "1401890"]
[WhiteElo "1997"]
[BlackElo "2219"]
[Result "1-0"]
[Round "02"]
[TimeControl "180+1"]
[Date "2022.05.11"]
[WhiteClock "0:00:29"]
[BlackClock "0:00:06"]

1. e4 {[%clk 0:03:00]}  c5 {[%clk 0:02:59]} 2. Nf3 {[%clk 0:03:00]}  d6 {[%clk 0:02:59]} 3. d4 {[%clk 0:02:57]}  cxd4 {[%clk 0:02:59]} 4. Nxd4 {[%clk 0:02:58]}  Nf6 {[%clk 0:02:59]} 5. Nc3 {[%clk 0:02:58]}  e6 {[%clk 0:02:59]} 6. f4 {[%clk 0:02:58]}  Nc6 {[%clk 0:02:57]} 7. Nb3 {[%clk 0:02:52]}  Be7 {[%clk 0:02:42]} 8. Bd3 {[%clk 0:02:51]}  O-O {[%clk 0:02:40]} 9. O-O {[%clk 0:02:49]}  b6 {[%clk 0:02:38]} 10. Qf3 {[%clk 0:02:37]}  Bb7 {[%clk 0:02:35]} 11. Bd2 {[%clk 0:02:35]}  Nb4 {[%clk 0:02:33]} 12. Rae1 {[%clk 0:02:28]}  Nxd3 {[%clk 0:02:31]} 13. cxd3 {[%clk 0:02:27]}  Qc7 {[%clk 0:02:11]} 14. Rc1 {[%clk 0:02:23]}  Qd7 {[%clk 0:02:02]} 15. Qg3 {[%clk 0:02:11]}  b5 {[%clk 0:02:00]} 16. Na5 {[%clk 0:01:54]}  b4 {[%clk 0:01:55]} 17. Ne2 {[%clk 0:01:47]}  Rfc8 {[%clk 0:01:12]} 18. Bxb4 {[%clk 0:01:29]}  Qb5 {[%clk 0:01:07]} 19. a3 {[%clk 0:01:19]}  Bxe4 {[%clk 0:01:00]} 20. dxe4 {[%clk 0:01:16]}  Qxe2 {[%clk 0:00:59]} 21. Nc6 {[%clk 0:01:08]}  Bf8 {[%clk 0:00:39]} 22. Rfe1 {[%clk 0:01:06]}  Qb5 {[%clk 0:00:34]} 23. Na5 {[%clk 0:00:41]}  Rxc1 {[%clk 0:00:19]} 24. Rxc1 {[%clk 0:00:41]}  Nxe4 {[%clk 0:00:16]} 25. Qe3 {[%clk 0:00:41]}  Qb6 {[%clk 0:00:15]} 26. Qxb6 {[%clk 0:00:40]}  axb6 {[%clk 0:00:14]} 27. Nc4 {[%clk 0:00:37]}  Rc8 {[%clk 0:00:12]} 28. Rc2 {[%clk 0:00:29]}  d5 {[%clk 0:00:07]} 29. Ne3 {[%clk 0:00:30]}  Rxc2 {[%clk 0:00:07]} 30. Nxc2 {[%clk 0:00:30]}  Bxb4 {[%clk 0:00:07]} 31. Nxb4 {[%clk 0:00:31]}  g6 {[%clk 0:00:07]} 32. Kf1 {[%clk 0:00:31]}  Nd2+ {[%clk 0:00:05]} 33. Ke2 {[%clk 0:00:31]}  Nc4 {[%clk 0:00:05]} 34. Nd3 {[%clk 0:00:31]}  f6 {[%clk 0:00:05]} 35. a4 {[%clk 0:00:29]}  e5 {[%clk 0:00:05]} 36. b3 {[%clk 0:00:27]}  Nd6 {[%clk 0:00:03]} 37. fxe5 {[%clk 0:00:27]}  fxe5 {[%clk 0:00:03]} 38. Nxe5 {[%clk 0:00:28]}  Nf5 {[%clk 0:00:03]} 39. Kd3 {[%clk 0:00:27]}  Kg7 {[%clk 0:00:04]} 40. b4 {[%clk 0:00:28]}  Kf6 {[%clk 0:00:03]} 41. Nc6 {[%clk 0:00:28]}  Ke6 {[%clk 0:00:03]} 42. Nd4+ {[%clk 0:00:28]}  Nxd4 {[%clk 0:00:03]} 43. Kxd4 {[%clk 0:00:28]}  Kd6 {[%clk 0:00:03]} 44. a5 {[%clk 0:00:28]}  bxa5 {[%clk 0:00:03]} 45. bxa5 {[%clk 0:00:29]}  Kc6 {[%clk 0:00:04]} 46. a6 {[%clk 0:00:29]}  Kb6 {[%clk 0:00:04]} 47. Kxd5 {[%clk 0:00:30]}  Kxa6 {[%clk 0:00:05]} 48. Ke6 {[%clk 0:00:31]}  Kb6 {[%clk 0:00:05]} 49. Kf6 {[%clk 0:00:31]}  Kc6 {[%clk 0:00:06]} 50. Kf7 {[%clk 0:00:32]}  Kd6 {[%clk 0:00:06]} 51. Kg7 {[%clk 0:00:32]}  Ke6 {[%clk 0:00:06]} 52. Kxh7 {[%clk 0:00:32]}  Kf6 {[%clk 0:00:06]} 53. Kh6 {[%clk 0:00:32]}  Kf5 {[%clk 0:00:06]} 54. h3 {[%clk 0:00:29]}  Kf6 {[%clk 0:00:06]} 55. g4 {[%clk 0:00:29]}  g5 {[%clk 0:00:06]} 56. Kh5 {[%clk 0:00:29]} 1-0


[Site "https://www.chess.com"]

[Event "Titled Tuesday Blitz May 10 Early 2022"]
[White "Horobetz, Graham"]
[Black "Azarov, Sergei"]
[WhiteFideId "2047322"]
[BlackFideId "13501470"]
[WhiteElo "2576"]
[BlackElo "2494"]
[Result "0-1"]
[Round "02"]
[TimeControl "180+1"]
[Date "2022.05.10"]
[WhiteClock "0:00:16"]
[BlackClock "0:00:49"]

1. e4 {[%clk 0:02:57]}  c5 {[%clk 0:02:59]} 2. Nc3 {[%clk 0:02:57]}  Nc6 {[%clk 0:02:59]} 3. f4 {[%clk 0:02:58]}  e6 {[%clk 0:02:56]} 4. Nf3 {[%clk 0:02:59]}  d5 {[%clk 0:02:55]} 5. Bb5 {[%clk 0:02:59]}  Ne7 {[%clk 0:02:44]} 6. d3 {[%clk 0:02:59]}  a6 {[%clk 0:02:44]} 7. Bxc6+ {[%clk 0:02:59]}  Nxc6 {[%clk 0:02:44]} 8. O-O {[%clk 0:02:59]}  Be7 {[%clk 0:02:43]} 9. Bd2 {[%clk 0:02:58]}  b5 {[%clk 0:02:43]} 10. Qe1 {[%clk 0:02:48]}  O-O {[%clk 0:02:36]} 11. Kh1 {[%clk 0:02:41]}  Nd4 {[%clk 0:02:28]} 12. Qd1 {[%clk 0:02:15]}  dxe4 {[%clk 0:02:18]} 13. Nxe4 {[%clk 0:02:10]}  Bb7 {[%clk 0:02:18]} 14. Nxd4 {[%clk 0:01:54]}  cxd4 {[%clk 0:02:07]} 15. Qe2 {[%clk 0:01:49]}  Rc8 {[%clk 0:02:06]} 16. Rac1 {[%clk 0:01:49]}  Qd5 {[%clk 0:02:04]} 17. a3 {[%clk 0:01:44]}  Qa2 {[%clk 0:01:45]} 18. Bb4 {[%clk 0:01:24]}  Bxb4 {[%clk 0:01:44]} 19. axb4 {[%clk 0:01:25]}  Bxe4 {[%clk 0:01:43]} 20. Qxe4 {[%clk 0:01:03]}  Qxb2 {[%clk 0:01:43]} 21. Rb1 {[%clk 0:00:58]}  Qxc2 {[%clk 0:01:41]} 22. Qxd4 {[%clk 0:00:58]}  Rfd8 {[%clk 0:01:39]} 23. Qa7 {[%clk 0:00:52]}  Ra8 {[%clk 0:01:26]} 24. Qb7 {[%clk 0:00:41]}  Qxd3 {[%clk 0:01:21]} 25. h3 {[%clk 0:00:40]}  Qd5 {[%clk 0:01:20]} 26. Qb6 {[%clk 0:00:39]}  Rd6 {[%clk 0:01:17]} 27. Qc7 {[%clk 0:00:36]}  Rad8 {[%clk 0:01:14]} 28. Rbe1 {[%clk 0:00:30]}  g6 {[%clk 0:01:12]} 29. f5 {[%clk 0:00:22]}  exf5 {[%clk 0:01:04]} 30. Rf3 {[%clk 0:00:21]}  Qc6 {[%clk 0:00:59]} 31. Qa5 {[%clk 0:00:19]}  Rd1 {[%clk 0:00:56]} 32. Rff1 {[%clk 0:00:16]}  R8d2 {[%clk 0:00:49]} 0-1


[Site "https://www.chess.com"]

[Event "Titled Tuesday Blitz May 10 Early 2022"]
[White "Hua, Lefong"]
[Black "Babazada, Khazar"]
[WhiteFideId "2602253"]
[BlackFideId "13413554"]
[WhiteElo "2600"]
[BlackElo "2406"]
[Result "1/2-1/2"]
[Round "02"]
[TimeControl "180+1"]
[Date "2022.05.10"]
[WhiteClock "0:00:53"]
[BlackClock "0:00:25"]

1. d4 {[%clk 0:03:00]}  Nf6 {[%clk 0:03:00]} 2. c4 {[%clk 0:03:01]}  g6 {[%clk 0:02:59]} 3. Nc3 {[%clk 0:03:01]}  Bg7 {[%clk 0:02:59]} 4. e4 {[%clk 0:03:02]}  O-O {[%clk 0:02:57]} 5. f4 {[%clk 0:03:02]}  d6 {[%clk 0:02:56]} 6. Nf3 {[%clk 0:03:02]}  c5 {[%clk 0:02:57]} 7. d5 {[%clk 0:03:02]}  e6 {[%clk 0:02:57]} 8. Be2 {[%clk 0:03:02]}  exd5 {[%clk 0:02:57]} 9. cxd5 {[%clk 0:03:03]}  b5 {[%clk 0:02:55]} 10. e5 {[%clk 0:03:03]}  dxe5 {[%clk 0:02:55]} 11. fxe5 {[%clk 0:03:04]}  Ng4 {[%clk 0:02:56]} 12. Bg5 {[%clk 0:03:04]}  Qb6 {[%clk 0:02:56]} 13. O-O {[%clk 0:03:03]}  c4+ {[%clk 0:02:55]} 14. Kh1 {[%clk 0:03:04]}  Nd7 {[%clk 0:02:55]} 15. d6 {[%clk 0:02:58]}  Bb7 {[%clk 0:02:52]} 16. a4 {[%clk 0:02:45]}  b4 {[%clk 0:02:40]} 17. Nd5 {[%clk 0:02:41]}  Qc5 {[%clk 0:02:40]} 18. Nc7 {[%clk 0:02:26]}  Rab8 {[%clk 0:02:12]} 19. e6 {[%clk 0:02:12]}  Bxf3 {[%clk 0:02:12]} 20. Bxf3 {[%clk 0:02:10]}  Qxg5 {[%clk 0:01:35]} 21. Bxg4 {[%clk 0:01:59]}  Ne5 {[%clk 0:01:36]} 22. exf7+ {[%clk 0:01:43]}  Kh8 {[%clk 0:01:28]} 23. Be6 {[%clk 0:01:35]}  Rbd8 {[%clk 0:01:29]} 24. d7 {[%clk 0:01:33]}  c3 {[%clk 0:01:24]} 25. bxc3 {[%clk 0:01:33]}  bxc3 {[%clk 0:01:25]} 26. Rc1 {[%clk 0:01:30]}  Nxd7 {[%clk 0:01:14]} 27. Bxd7 {[%clk 0:01:28]}  Qe7 {[%clk 0:01:14]} 28. Ne6 {[%clk 0:01:19]}  Rxd7 {[%clk 0:01:12]} 29. Qxd7 {[%clk 0:01:13]}  Qxd7 {[%clk 0:01:00]} 30. Nxf8 {[%clk 0:01:13]}  Bxf8 {[%clk 0:01:01]} 31. Rxc3 {[%clk 0:01:13]}  Kg7 {[%clk 0:01:01]} 32. Rc4 {[%clk 0:01:09]}  a5 {[%clk 0:00:59]} 33. h4 {[%clk 0:01:07]}  h5 {[%clk 0:00:58]} 34. Rcf4 {[%clk 0:01:07]}  Qd6 {[%clk 0:00:54]} 35. R1f3 {[%clk 0:01:06]}  Qd2 {[%clk 0:00:46]} 36. Rf2 {[%clk 0:01:04]}  Qe1+ {[%clk 0:00:44]} 37. Rf1 {[%clk 0:01:03]}  Qe5 {[%clk 0:00:42]} 38. g3 {[%clk 0:01:01]}  Qd5+ {[%clk 0:00:41]} 39. Kh2 {[%clk 0:01:00]}  Qe6 {[%clk 0:00:37]} 40. Kg2 {[%clk 0:00:59]}  Qc6+ {[%clk 0:00:35]} 41. R1f3 {[%clk 0:00:58]}  Qc1 {[%clk 0:00:32]} 42. Rf1 {[%clk 0:00:57]}  Qc7 {[%clk 0:00:30]} 43. R1f3 {[%clk 0:00:56]}  Kh6 {[%clk 0:00:31]} 44. Rf1 {[%clk 0:00:54]}  Qc6+ {[%clk 0:00:30]} 45. R1f3 {[%clk 0:00:54]}  Qd5 {[%clk 0:00:30]} 46. Kh2 {[%clk 0:00:54]}  Kg7 {[%clk 0:00:25]} 47. Rf1 {[%clk 0:00:53]} 1/2-1/2


[Site "https://www.chess.com"]